[Event "Hungarian Youth-ch U12 2022"]
[Site "Eger"]
[Date "2022.07.24"]
[Round "2.8"]
[White "Balazs, Szabina Zoe"]
[Black "Biro, Beata"]
[Result "1/2-1/2"]
[ECO "B43"]
[WhiteElo "1437"]
[BlackElo "1551"]
[Annotator "NA RC COMBH"]
[PlyCount "45"]
[EventDate "2022.07.21"]
[EventType "tourn"]
[EventCountry "HUN"]
[SourceTitle "playchess.com"]
[Source "ChessBase"]
[SourceQuality "1"]
[TimeControl "40/5400+30:1800+30"]

1. e4 {[%emt 0:00:33]} c5 {[%emt 0:00:42]} 2. Nf3 {[%emt 0:00:14]} e6 {[%emt 0:00:27]} 3. d4 {[%emt 0:00:36]} cxd4 {[%emt 0:00:28]} 4. Nxd4 {[%emt 0:00:29]} a6 {[%emt 0:00:39]} 5. Nc3 {[%emt 0:00:57]} b5 {[%emt 0:01:10]} 6. a3 {[%emt 0:01:46]} Bb7 {[%emt 0:01:16]} 7. Be3 {[%emt 0:01:17]} Qc7 {[%emt 0:01:00]} 8. Bd3 {[%emt 0:02:56]} Nf6 {[%emt 0:01:21]} 9. Qe2 {[%emt 0:01:42]} d6 {[%emt 0:01:35]} 10. O-O {[%emt 0:01:05]} Be7 {[%emt 0:01:56]} 11. Kh1 {[%emt 0:01:07]} Nbd7 {[%emt 0:02:14]} 12. f4 {[%emt 0:02:06]} Nc5 {[%emt 0:03:26]} 13. Bd2 {[%emt 0:01:45]} Qb6 {[%emt 0:04:08]} 14. Be3 {[%emt 0:06:33]} Qd8 {[%emt 0:05:03]} 15. Bg1 {[%emt 0:02:19]} O-O {[%emt 0:02:02]} 16. Rae1 {[%emt 0:04:24]} Re8 {[%emt 0:02:37]} 17. e5 {[%emt 0:06:30]} dxe5 {[%emt 0:05:11]} 18. fxe5 {[%emt 0:00:18]} Nd5 {[%emt 0:01:58]} 19. Bxh7+ {[%emt 0:02:21]} Kxh7 {[%emt 0:07:17]} 20. Qh5+ {[%emt 0:00:22]} Kg8 {[%emt 0:00:12]} 21. Qxf7+ {[%emt 0:00:26]} Kh8 {[%emt 0:01:20]} 22. Qh5+ {[%emt 0:00:59]} Kg8 {[%emt 0:00:43]} 23. Qf7+ {[%emt 0:00:44]} 1/2-1/2

[Event "Hungarian Youth-ch U12 2022"]
[Site "Eger"]
[Date "2022.07.24"]
[Round "2.9"]
[White "Brieber, Dorottya"]
[Black "Kiss, Inez"]
[Result "0-1"]
[ECO "D00"]
[WhiteElo "1242"]
[BlackElo "1397"]
[Annotator "NA RC COMBH"]
[PlyCount "104"]
[EventDate "2022.07.21"]
[EventType "tourn"]
[EventCountry "HUN"]
[SourceTitle "playchess.com"]
[Source "ChessBase"]
[SourceQuality "1"]
[TimeControl "40/5400+30:1800+30"]

1. d4 {[%emt 0:00:33]} d5 {[%emt 0:00:34]} 2. Nc3 {[%emt 0:00:15]} Nf6 {[%emt 0:00:03]} 3. Bf4 {[%emt 0:00:23]} c6 {[%emt 0:00:25]} 4. Nf3 {[%emt 0:00:27]} Bg4 {[%emt 0:00:34]} 5. h3 {[%emt 0:00:28]} Bxf3 {[%emt 0:00:54]} 6. exf3 {[%emt 0:00:16]} e6 {[%emt 0:00:17]} 7. Bd3 {[%emt 0:00:38]} Nbd7 {[%emt 0:01:03]} 8. Qe2 {[%emt 0:00:43]} Bb4 {[%emt 0:01:12]} 9. Bd2 {[%emt 0:00:27]} O-O {[%emt 0:01:01]} 10. a3 {[%emt 0:00:24]} Ba5 {[%emt 0:00:32]} 11. O-O {[%emt 0:00:25]} Re8 {[%emt 0:01:13]} 12. Qd1 {[%emt 0:03:15]} e5 {[%emt 0:05:52]} 13. Be3 {[%emt 0:03:46]} exd4 {[%emt 0:07:41]} 14. Bxd4 {[%emt 0:01:02]} c5 {[%emt 0:01:48]} 15. Bxf6 {[%emt 0:01:58]} Nxf6 {[%emt 0:00:34]} 16. Bb5 {[%emt 0:01:45]} Re7 {[%emt 0:05:21]} 17. Ne2 {[%emt 0:05:04]} a6 {[%emt 0:00:41]} 18. Ba4 {[%emt 0:00:49]} Qc7 {[%emt 0:09:19]} 19. g3 {[%emt 0:02:47]} c4 {[%emt 0:07:49]} 20. c3 {[%emt 0:03:12]} b5 {[%emt 0:03:50]} 21. Bc2 {[%emt 0:00:53]} Bb6 {[%emt 0:01:43]} 22. Nd4 {[%emt 0:01:14]} Rae8 {[%emt 0:10:06]} 23. Qd2 {[%emt 0:02:47]} Bxd4 {[%emt 0:02:48]} 24. Qxd4 {[%emt 0:00:44]} Re2 {[%emt 0:02:14]} 25. Rac1 {[%emt 0:00:45]} Qe5 {[%emt 0:04:12]} 26. Qh4 {[%emt 0:04:11]} Qh5 {[%emt 0:06:53]} 27. Qxh5 {[%emt 0:00:35]} Nxh5 {[%emt 0:00:23]} 28. b3 {[%emt 0:00:19]} Nf6 {[%emt 0:02:09]} 29. b4 {[%emt 0:00:45]} Nd7 {[%emt 0:03:35]} 30. Bf5 {[%emt 0:00:39]} Ne5 {[%emt 0:04:02]} 31. Rcd1 {[%emt 0:01:19]} Nxf3+ {[%emt 0:03:43]} 32. Kh1 {[%emt 0:00:57]} Nd2 {[%emt 0:04:11]} 33. Bd7 {[%emt 0:02:08]} R8e7 {[%emt 0:03:49]} 34. Bg4 {[%emt 0:00:24]} Nxf1 {[%emt 0:00:55]} 35. Bxe2 {[%emt 0:00:16]} Rxe2 {[%emt 0:00:18]} 36. Rxf1 {[%emt 0:00:11]} Kf8 {[%emt 0:01:30]} 37. Rd1 {[%emt 0:00:42]} Rc2 {[%emt 0:01:29]} 38. Rxd5 {[%emt 0:00:58]} Rxc3 {[%emt 0:00:12]} 39. Kg1 {[%emt 0:00:38]} Rxa3 {[%emt 0:00:13]} 40. Kf1 {[%emt 0:00:00]} Rb3 {[%emt 0:00:00]} 41. Ke2 {[%emt 0:02:55]} Rxb4 {[%emt 0:02:04]} 42. Kd2 {[%emt 0:00:19]} Rb2+ {[%emt 0:00:10]} 43. Kc3 {[%emt 0:00:29]} Rxf2 {[%emt 0:00:22]} 44. Kb4 {[%emt 0:00:43]} Rf3 {[%emt 0:00:35]} 45. Rc5 {[%emt 0:00:30]} c3 {[%emt 0:00:42]} 46. Rxc3 {[%emt 0:00:00]} Rxc3 {[%emt 0:00:07]} 47. Kxc3 {[%emt 0:00:00]} a5 {[%emt 0:00:08]} 48. Kb3 {[%emt 0:00:00]} b4 {[%emt 0:00:05]} 49. Ka4 {[%emt 0:00:13]} f5 {[%emt 0:00:05]} 50. h4 {[%emt 0:00:22]} h6 {[%emt 0:00:08]} 51. Kb3 {[%emt 0:00:25]} g5 {[%emt 0:00:06]} 52. hxg5 {[%emt 0:00:14]} hxg5 {[%emt 0:00:04]} 0-1

[Event "Hungarian Youth-ch U12 2022"]
[Site "Eger"]
[Date "2022.07.25"]
[Round "3.1"]
[White "Juhasz, Edmond"]
[Black "Horvath, Andras"]
[Result "1-0"]
[ECO "C58"]
[WhiteElo "1510"]
[BlackElo "2251"]
[Annotator "TA"]
[PlyCount "47"]
[EventDate "2022.07.21"]
[EventType "tourn"]
[EventCountry "HUN"]
[SourceTitle "playchess.com"]
[Source "ChessBase"]
[SourceQuality "1"]
[TimeControl "40/5400+30:1800+30"]

{[%evp 16,47,27,2,53,26,26,32,37,22,131,140,168,167,177,183,230,220,262,272,265,170,178,189,178,164,316,297,397,378,2679,2496,29996,29997]} 1. e4 {[%emt 0:00:36]} e5 {[%emt 0:00:34]} 2. Nf3 {[%emt 0:00:16]} Nc6 {[%emt 0:00:10]} 3. Bc4 {[%emt 0:00:25]} Nf6 {[%emt 0:00:12]} 4. Ng5 {[%emt 0:00:37]} d5 {[%emt 0:01:30]} 5. exd5 {[%emt 0:00:54]} Na5 {[%emt 0:00:18]} 6. Bb5+ {[%emt 0:00:23]} c6 {[%emt 0:00:41]} 7. dxc6 {[%emt 0:00:50]} bxc6 {[%emt 0:00:34]} 8. Qf3 {[%emt 0:01:34] 8.Bd3 is the modern continuation.} Rb8 {[%emt 0:00:41] is the legacy move (8...Be7).} 9. Bd3 {[%emt 0:01:34]} Be7 {[%emt 0:08:09] C58: Two Knights: 4 Ng5 d5 5 exd5 Na5 sidelines.} (9... Bd6 $11) 10. Nc3 {[%emt 0:02:42]} O-O {[%emt 0:04:01]} 11. O-O {[%emt 0:05:19]} h6 {[%emt 0:06:01] White is slightly better.} 12. Nge4 {[%emt 0:04:41]} Nxe4 {[%emt 0:01:17] [#]} (12... Nh7 $11) 13. Qxe4 $146 {[%emt 0:02:00][%csl Gd3][%cal Re4h7] [#]} ({Predecessor:} 13. Bxe4 Qc7 14. Bf5 Bb7 15. b3 Rbd8 16. d3 Bd6 17. Qg4 Bc8 18. Bxh6 f6 19. Bxc8 Rxc8 20. Bxg7 Qxg7 {1-0 (39) Centeno Mendoza,J (1767)-Fernandez Rosado,R (1757) Madrid 2019}) 13... f5 {[%emt 0:03:19]} 14. Qxe5 {[%emt 0:02:40]} Bd6 {[%emt 0:02:36]} 15. Qe2 {[%emt 0:06:55]} Kh8 {[%emt 0:05:50] [#]} (15... c5 $142 16. b3 Qc7) 16. b3 $1 $18 {[%emt 0:06:10][%cal Bb2b3,Bb3c4][%mdl 32]} Bb7 {[%emt 0:09:56]} 17. Qh5 {[%emt 0:04:04]} Qd7 {[%emt 0:07:32]} 18. a3 {[%emt 0:02:31] aiming for b4.} c5 {[%emt 0:02:00] Prevents b4.} 19. Bb2 {[%emt 0:02:50]} c4 {[%emt 0:09:30]} 20. bxc4 {[%emt 0:10:04] And now Rfe1 would win.} ({Don't do} 20. Bxc4 $6 Nxc4 21. bxc4 Bxg2 $14) 20... Bf4 $2 {[%emt 0:11:42]} (20... Rbc8 21. Nd5 Nxc4 22. Bxc4 (22. Qxh6+ Kg8 $16) 22... Rxc4) 21. Rab1 {[%emt 0:11:06] Strongly threatening Ne2.} Bxd2 {[%emt 0:03:35]} 22. Rfd1 {[%emt 0:00:39]} g6 $2 {[%emt 0:02:02]} (22... Bg5 23. Nd5 Kh7) 23. Qxg6 {[%emt 0:08:18] Intending Nd5+ and mate.} Bxg2 {[%emt 0:02:41]} 24. Nb5+ {[%emt 0:02:18] Black got outplayed after the opening.  Weighted Error Value: White=0.12 (very precise) /Black=0.88} 1-0

[Event "Hungarian Youth-ch U12 2022"]
[Site "Eger"]
[Date "2022.07.25"]
[Round "3.2"]
[White "Feher, Botond"]
[Black "Onodi, Miklos"]
[Result "0-1"]
[ECO "B20"]
[WhiteElo "1747"]
[BlackElo "1901"]
[Annotator "TA"]
[PlyCount "120"]
[EventDate "2022.07.21"]
[EventType "tourn"]
[EventCountry "HUN"]
[SourceTitle "playchess.com"]
[Source "ChessBase"]
[SourceQuality "1"]
[TimeControl "40/5400+30:1800+30"]

{[%evp 9,120,-14,13,5,41,11,27,13,24,29,20,8,33,22,53,50,45,-33,70,71,69,-35,-25,-52,-44,-52,-49,-53,-22,-32,-22,-41,-6,-77,-65,-82,-16,-27,-29,-51,-39,-51,-51,-60,-33,-63,33,-40,-40,-40,-40,-76,-43,-50,-10,-27,0,-13,-1,-1,-8,-22,-22,-582,-502,-447,-402,-1376,-1350,-1152,-1218,-1048,-1126,-1065,-1049,-803,-384,-5177,-2557,-1987,-1873,-1283,-947,-859,-769,-791,-826,-454,-823,-556,0,-435,-387,-29961,-29966,-29958,-29963,-29959,-29964,-29957,-29960,-29971,-29972,-29963,-5206,-29980,-29981,-29981,-29982,-29984,-29985,-29985,-29986]} 1. e4 c5 {[%emt 0:00:36]} 2. c4 {[%emt 0:00:47]} Nc6 {[%emt 0:00:50]} 3. Nc3 {[%emt 0:00:07]} g6 {[%emt 0:00:12]} 4. g3 {[%emt 0:00:15]} Bg7 {[%emt 0:00:17]} 5. Bg2 {[%emt 0:00:05]} e5 {[%emt 0:03:30]} 6. Nge2 {[%emt 0:00:05] A36: Symmetrical English vs ...g6: 4 Bg2 Bg7.} f5 {[%emt 0:04:36]} 7. O-O {[%emt 0:07:01]} Nge7 {[%emt 0:01:25]} 8. d3 {[%emt 0:00:39] White has an edge.} O-O {[%emt 0:00:10]} 9. Bg5 {[%emt 0:02:33]} d6 {[%emt 0:00:34]} 10. Rb1 {[%emt 0:01:20]} Be6 {[%emt 0:03:49]} 11. Nd5 {[%emt 0:04:53]} h6 {[%emt 0:02:53] [#]} 12. Bxe7 $146 {[%emt 0:00:17]} ({Predecessor:} 12. Bd2 Qd7 13. a3 fxe4 14. dxe4 Nd4 15. Nec3 Nxd5 16. Nxd5 b5 17. cxb5 Bxd5 18. exd5 Nxb5 {1-0 (48) Tusa,T (2185)-Nordman,J Valkeakoski 2009}) 12... Nxe7 {[%emt 0:00:06]} 13. Qd2 {[%emt 0:08:34]} (13. b4 $14) 13... Bd7 {[%emt 0:03:24]} (13... Nxd5 $15 14. cxd5 Bc8) 14. Nxe7+ $14 {[%emt 0:04:35]} Qxe7 {[%emt 0:00:36]} 15. b4 {[%emt 0:00:16]} (15. exf5 Bxf5 16. b4) (15. exf5 $1 $14 Bxf5 16. b4) 15... f4 $1 $15 {[%emt 0:02:08] aiming for ...f3.} 16. f3 {[%emt 0:07:24]} b6 {[%emt 0:00:32]} 17. bxc5 {[%emt 0:01:52]} dxc5 {[%emt 0:00:25]} 18. Nc3 {[%emt 0:00:21]} Qg5 {[%emt 0:00:46]} 19. Qf2 {[%emt 0:00:53]} h5 {[%emt 0:04:44]} 20. Nd5 {[%emt 0:05:01]} Qh6 {[%emt 0:08:12]} 21. h3 {[%emt 0:02:57]} (21. a4 $11) 21... g5 $17 {[%emt 0:03:39]} 22. g4 {[%emt 0:01:27]} hxg4 {[%emt 0:00:13]} ({Black should try} 22... Bf6 $17) 23. hxg4 $11 {[%emt 0:00:41]} Kf7 {[%emt 0:01:58]} 24. Rfd1 {[%emt 0:04:41]} Rh8 {[%emt 0:00:52]} 25. Kf1 {[%emt 0:00:16]} Ba4 {[%emt 0:02:24]} 26. Rdc1 {[%emt 0:00:06]} Qh4 {[%emt 0:00:31]} 27. Qxh4 {[%emt 0:04:00]} Rxh4 {[%emt 0:01:58]} ({Black should play} 27... gxh4 $15 28. Bh3 Bf6) 28. Nc3 {[%emt 0:00:06]} (28. Rc3 $1 $14) 28... Bc6 $15 {[%emt 0:00:20] This bishop pair is nice.} 29. a4 {[%emt 0:00:52]} Bf6 {[%emt 0:02:06][%cal Bg7f6,Bf6d8,Bd8c7][%mdl 32]} 30. Ra1 {[%emt 0:00:33]} Bd8 {[%emt 0:00:35] Black is more active.} 31. Kf2 {[%emt 0:00:08]} Bc7 {[%emt 0:00:09]} 32. Nd5 {[%emt 0:00:06]} (32. Nb5 $5 {[%cal Rb5c7]} Bd8 33. Rcb1 $11) 32... Bxd5 {[%emt 0:00:31]} 33. cxd5 {[%emt 0:00:47]} Ke7 {[%emt 0:00:17]} 34. Rh1 {[%emt 0:03:58]} Rah8 {[%emt 0:11:19]} 35. Rxh4 {[%emt 0:01:14]} Rxh4 {[%emt 0:00:26]} 36. Rh1 $2 {[%emt 0:00:06][%mdl 8192] Black converts the advantage convincingly.} (36. Rb1 $11 {and White has nothing to worry.}) 36... Rxh1 $19 {[%emt 0:00:35]} 37. Bxh1 {[%emt 0:00:05][%mdl 4096] Endgame KB-KB} Kd6 {[%emt 0:00:06][%cal Oc5c4] Threatens to win with ...c4!} 38. Ke2 {[%emt 0:02:01] [#]} (38. Ke1 $142 a6 39. Kd2) 38... c4 $1 {[%emt 0:01:55]} 39. dxc4 {[%emt 0:00:08]} Kc5 {[%emt 0:00:04]} 40. Kd3 {[%emt 0:00:00] [#]} Kb4 $1 {[%emt 0:00:00]} 41. Bg2 {[%emt 0:00:50]} Bd6 {[%emt 0:00:16]} 42. Bf1 {[%emt 0:01:31]} Kxa4 {[%emt 0:00:06]} 43. Be2 $2 {[%emt 0:13:33]} (43. Kc3 Ba3 44. Kc2) 43... Kb4 {[%emt 0:00:26]} 44. Bd1 {[%emt 0:00:06]} Bc5 {[%emt 0:04:30]} 45. Bc2 {[%emt 0:01:45]} Ka3 {[%emt 0:01:59] White must now prevent ...Kb4.} 46. Kc3 {[%emt 0:01:07]} Bb4+ {[%emt 0:00:22]} 47. Kd3 {[%emt 0:00:22]} Kb2 {[%emt 0:00:49]} 48. Ba4 {[%emt 0:00:07]} Bc5 {[%emt 0:00:21]} 49. Bc2 {[%emt 0:00:12]} Ka3 {[%emt 0:03:37] Hoping for ...Kb4.} 50. Kc3 {[%emt 0:00:04]} a6 {[%emt 0:01:41][%cal Ba7a6,Ba6a5,Ba5a4][%mdl 32]} 51. Bb3 $2 {[%emt 0:01:07]} (51. Bb1 $19 Bd4+ 52. Kc2) 51... Bb4+ {[%emt 0:01:00]} 52. Kc2 {[%emt 0:00:24]} a5 {[%emt 0:00:25]} 53. c5 {[%emt 0:01:38]} Bxc5 {[%emt 0:01:04]} 54. Bc4 {[%emt 0:03:37]} Kb4 {[%emt 0:00:14]} 55. Ba2 {[%emt 0:00:14]} b5 {[%emt 0:01:02]} 56. Kb2 {[%emt 0:02:11]} a4 {[%emt 0:00:17] ( -> ...Bd6)} 57. Kc2 {[%emt 0:00:50]} Ka3 {[%emt 0:00:20] Black mates.} 58. Bb1 {[%emt 0:00:22]} Bb4 {[%emt 0:00:28]} 59. Kc1 {[%emt 0:01:32]} Kb3 {[%emt 0:00:10]} 60. Bc2+ {[%emt 0:00:09]} Kc3 {[%emt 0:00:10] Weighted Error Value: White=0.74/Black=0.27 (precise)} 0-1

[Event "Hungarian Youth-ch U12 2022"]
[Site "Eger"]
[Date "2022.07.25"]
[Round "3.3"]
[White "Bod, Marton"]
[Black "Kovacs, Kristof"]
[Result "1/2-1/2"]
[ECO "C44"]
[WhiteElo "1758"]
[BlackElo "1812"]
[Annotator "NA RC COMBH"]
[PlyCount "153"]
[EventDate "2022.07.21"]
[EventType "tourn"]
[EventCountry "HUN"]
[SourceTitle "playchess.com"]
[Source "ChessBase"]
[SourceQuality "1"]
[TimeControl "40/5400+30:1800+30"]

1. e4 {[%emt 0:00:38]} e5 {[%emt 0:00:40]} 2. Nf3 {[%emt 0:00:11]} Nc6 {[%emt 0:00:22]} 3. d4 {[%emt 0:00:59]} exd4 {[%emt 0:00:31]} 4. Nxd4 {[%emt 0:00:10]} Nf6 {[%emt 0:00:23]} 5. Nc3 {[%emt 0:00:24]} Bb4 {[%emt 0:00:28]} 6. Nxc6 {[%emt 0:01:16]} bxc6 {[%emt 0:00:35]} 7. Bd3 {[%emt 0:01:16]} d5 {[%emt 0:00:57]} 8. exd5 {[%emt 0:02:11]} cxd5 {[%emt 0:00:56]} 9. O-O {[%emt 0:01:15]} O-O {[%emt 0:01:10]} 10. Bg5 {[%emt 0:00:47]} c6 {[%emt 0:00:41]} 11. Qf3 {[%emt 0:01:49]} Be7 {[%emt 0:00:38]} 12. Rfe1 {[%emt 0:02:50]} h6 {[%emt 0:02:55]} 13. Qe3 {[%emt 0:11:02]} hxg5 {[%emt 0:05:18]} 14. Qxe7 {[%emt 0:00:13]} Qxe7 {[%emt 0:01:20]} 15. Rxe7 {[%emt 0:00:07]} Be6 {[%emt 0:00:27]} 16. Na4 {[%emt 0:03:23]} Nd7 {[%emt 0:04:20]} 17. Re1 {[%emt 0:06:25]} Rad8 {[%emt 0:02:34]} 18. h3 {[%emt 0:04:25]} Rfe8 {[%emt 0:06:17]} 19. Rxe8+ {[%emt 0:00:33]} Rxe8 {[%emt 0:00:02]} 20. c4 {[%emt 0:01:12]} d4 {[%emt 0:01:19]} 21. b4 {[%emt 0:00:37]} f6 {[%emt 0:01:58]} 22. Re4 {[%emt 0:00:47]} Ne5 {[%emt 0:00:46]} 23. Nc5 {[%emt 0:01:23]} Bf5 {[%emt 0:01:35]} 24. Rxd4 {[%emt 0:00:58]} Bxh3 {[%emt 0:00:24]} 25. Rd6 {[%emt 0:03:36]} Bg4 {[%emt 0:04:13]} 26. Nb3 {[%emt 0:02:54]} Be6 {[%emt 0:02:27]} 27. Na5 {[%emt 0:00:35]} Bf7 {[%emt 0:03:37]} 28. a3 {[%emt 0:01:06]} Rc8 {[%emt 0:03:29]} 29. Bf5 {[%emt 0:01:10]} Re8 {[%emt 0:01:55]} 30. Bc2 {[%emt 0:05:10]} g6 {[%emt 0:11:39]} 31. f3 {[%emt 0:03:49]} Kg7 {[%emt 0:01:47]} 32. Ba4 {[%emt 0:01:10]} g4 {[%emt 0:03:12]} 33. Bxc6 {[%emt 0:01:16]} Nxc6 {[%emt 0:02:53]} 34. Rxc6 {[%emt 0:00:45]} gxf3 {[%emt 0:00:43]} 35. gxf3 {[%emt 0:00:11]} Re3 {[%emt 0:00:08]} 36. Ra6 {[%emt 0:00:49]} Rxa3 {[%emt 0:00:26]} 37. Rxa7 {[%emt 0:00:33]} Rxf3 {[%emt 0:00:06]} 38. b5 {[%emt 0:00:09]} Rc3 {[%emt 0:04:28]} 39. b6 {[%emt 0:00:33]} Rc1+ {[%emt 0:00:03]} 40. Kf2 {[%emt 0:00:00]} Rb1 {[%emt 0:00:00]} 41. b7 {[%emt 0:00:48]} Kh6 {[%emt 0:00:22]} 42. Ra8 {[%emt 0:00:36]} Rb2+ {[%emt 0:00:14]} 43. Ke3 {[%emt 0:00:13]} Bxc4 {[%emt 0:00:08]} 44. b8=Q {[%emt 0:00:18]} Rxb8 {[%emt 0:00:03]} 45. Rxb8 {[%emt 0:00:07]} Bd5 {[%emt 0:00:08]} 46. Rb5 {[%emt 0:00:21]} Bf7 {[%emt 0:00:06]} 47. Nb3 {[%emt 0:00:15]} g5 {[%emt 0:00:26]} 48. Nd4 {[%emt 0:00:10]} Bc4 {[%emt 0:00:31]} 49. Rc5 {[%emt 0:00:10]} Ba2 {[%emt 0:00:05]} 50. Kf3 {[%emt 0:00:18]} Kg6 {[%emt 0:00:06]} 51. Kg4 {[%emt 0:00:26]} Bb1 {[%emt 0:00:19]} 52. Rc6 {[%emt 0:00:31]} Bd3 {[%emt 0:00:15]} 53. Rd6 {[%emt 0:01:02]} Bb1 {[%emt 0:00:12]} 54. Ne2 {[%emt 0:00:11]} Be4 {[%emt 0:00:22]} 55. Nc3 {[%emt 0:00:13]} Bf5+ {[%emt 0:00:12]} 56. Kg3 {[%emt 0:00:06]} Kf7 {[%emt 0:00:38]} 57. Nd5 {[%emt 0:00:32]} Be6 {[%emt 0:00:02]} 58. Ne3 {[%emt 0:00:28]} f5 {[%emt 0:00:07]} 59. Kf3 {[%emt 0:00:18]} Kf6 {[%emt 0:00:11]} 60. Rb6 {[%emt 0:01:33]} Ke5 {[%emt 0:00:31]} 61. Ke2 {[%emt 0:00:37]} f4 {[%emt 0:00:38]} 62. Ng2 {[%emt 0:00:24]} Bd5 {[%emt 0:00:12]} 63. Ne1 {[%emt 0:00:26]} Ke4 {[%emt 0:01:07]} 64. Rb4+ {[%emt 0:00:16]} Kf5 {[%emt 0:00:13]} 65. Nf3 {[%emt 0:00:32]} g4 {[%emt 0:00:50]} 66. Nh4+ {[%emt 0:00:19]} Kg5 {[%emt 0:00:30]} 67. Rb5 {[%emt 0:00:29]} Kxh4 {[%emt 0:00:04]} 68. Rxd5 {[%emt 0:00:06]} Kg3 {[%emt 0:00:44]} 69. Rd3+ {[%emt 0:01:07]} Kg2 {[%emt 0:00:05]} 70. Rd4 {[%emt 0:01:15]} f3+ {[%emt 0:00:02]} 71. Ke3 {[%emt 0:00:19]} g3 {[%emt 0:00:31]} 72. Rd1 {[%emt 0:04:40]} f2 {[%emt 0:00:45]} 73. Ke2 {[%emt 0:00:09]} Kh3 {[%emt 0:00:49]} 74. Kf3 {[%emt 0:02:49]} Kh2 {[%emt 0:00:09]} 75. Rf1 {[%emt 0:00:51]} g2 {[%emt 0:00:11]} 76. Rxf2 {[%emt 0:00:08]} Kh1 {[%emt 0:00:04]} 77. Rxg2 {[%emt 0:00:15]} 1/2-1/2

[Event "Hungarian Youth-ch U12 2022"]
[Site "Eger"]
[Date "2022.07.25"]
[Round "3.4"]
[White "Karacsonyi, Bank"]
[Black "Janosi, Bence"]
[Result "1-0"]
[ECO "C02"]
[WhiteElo "1791"]
[BlackElo "1428"]
[Annotator "NA RC COMBH"]
[PlyCount "62"]
[EventDate "2022.07.21"]
[EventType "tourn"]
[EventCountry "HUN"]
[SourceTitle "playchess.com"]
[Source "ChessBase"]
[SourceQuality "1"]
[TimeControl "40/5400+30:1800+30"]

1. e4 {[%emt 0:00:35]} e6 {[%emt 0:00:34]} 2. d4 {[%emt 0:00:05]} d5 {[%emt 0:00:07]} 3. e5 {[%emt 0:00:02]} c5 {[%emt 0:00:10]} 4. c3 {[%emt 0:00:03]} Nc6 {[%emt 0:00:07]} 5. Nf3 {[%emt 0:00:04]} Bd7 {[%emt 0:00:13]} 6. Be2 {[%emt 0:01:03]} Nge7 {[%emt 0:01:16]} 7. O-O {[%emt 0:05:29]} cxd4 {[%emt 0:01:09]} 8. cxd4 {[%emt 0:00:37]} Nf5 {[%emt 0:00:47]} 9. Be3 {[%emt 0:01:21]} Be7 {[%emt 0:03:02]} 10. Nc3 {[%emt 0:02:22]} O-O {[%emt 0:01:31]} 11. Bd3 {[%emt 0:03:09]} Nh4 {[%emt 0:01:09]} 12. Nxh4 {[%emt 0:06:29]} Bxh4 {[%emt 0:02:05]} 13. Qh5 {[%emt 0:01:41]} g6 {[%emt 0:01:59]} 14. Qh6 {[%emt 0:04:32]} f5 {[%emt 0:00:43]} 15. g3 {[%emt 0:05:53]} Be7 {[%emt 0:02:11]} 16. h4 {[%emt 0:00:56]} Rf7 {[%emt 0:01:52]} 17. Qf4 {[%emt 0:16:02]} a6 {[%emt 0:06:01]} 18. a3 {[%emt 0:03:57]} Rg7 {[%emt 0:05:26]} 19. Qf3 {[%emt 0:09:05]} g5 {[%emt 0:03:02]} 20. hxg5 {[%emt 0:01:08]} Bxg5 {[%emt 0:00:30]} 21. Ne2 {[%emt 0:00:59]} Qe7 {[%emt 0:09:09]} 22. Kg2 {[%emt 0:04:53]} Rf8 {[%emt 0:02:24]} 23. Bc1 {[%emt 0:05:53]} f4 {[%emt 0:02:43]} 24. g4 {[%emt 0:01:18]} h5 {[%emt 0:01:55]} 25. gxh5 {[%emt 0:00:58]} Bf6+ 26. Bg6 {[%emt 0:05:45]} Bxe5 {[%emt 0:06:42]} 27. Rg1 {[%emt 0:01:50]} Bxd4 {[%emt 0:02:34]} 28. Nxd4 {[%emt 0:02:21]} Nxd4 {[%emt 0:00:22]} 29. Qd3 {[%emt 0:00:15]} f3+ {[%emt 0:00:13]} 30. Kg3 {[%emt 0:01:08]} Qg5+ {[%emt 0:00:22]} 31. Bxg5 Ne2+ 1-0